Workbook

Sheet DATA ELV
D3: الجمعة | E3: 2022-03-11
A5: الرقم | B5: اسم و لقـــــب التلميذ | C5: رقم التعريف المدرسي | D5: تاريخ الميلاد | E5: القسم | F5: ح1 | G5: ح2 | H5: ح3 | I5: ح4 | J5: ح5 | K5: ح6 | L5: ح7 | M5: ح8 | N5: مج
A6: 1 | B6: ='[1]DATA ELV'!B9 -> بوستين أسامة | C6: ='[1]DATA ELV'!C9 -> 1000513270043200 | D6: ='[1]DATA ELV'!G9 -> 2005-02-20 | E6: ='[1]DATA ELV'!J9 -> 3ت ر/هم | I6: غ | K6: غ | M6: غ | N6: =COUNTA(F6:M6) -> 3
A7: 20 | B7: ='[1]DATA ELV'!B28 -> قنشي علاء الدين | C7: ='[1]DATA ELV'!C28 -> 0 | D7: ='[1]DATA ELV'!G28 -> 2002-12-25 | E7: ='[1]DATA ELV'!J28 -> 3ت ر/هك | N7: =COUNTA(F7:M7) -> 0
A8: 21 | B8: ='[1]DATA ELV'!B29 -> الفضيل ريم | C8: ='[1]DATA ELV'!C29 -> 1100413270069100 | D8: ='[1]DATA ELV'!G29 -> 2004-03-23 | E8: ='[1]DATA ELV'!J29 -> 3ت إ01 | I8: غ | N8: 1
A9: 22 | B9: ='[1]DATA ELV'!B30 -> بن طيب ياسين | C9: ='[1]DATA ELV'!C30 -> 1000413270333600 | D9: ='[1]DATA ELV'!G30 -> 2004-12-04 | E9: ='[1]DATA ELV'!J30 -> 3ت إ01 | M9: غ | N9: 1
A10: 92 | B10: ='[1]DATA ELV'!B100 -> مهنان قصي | C10: ='[1]DATA ELV'!C100 -> 1000313270210200 | D10: ='[1]DATA ELV'!G100 -> 2003-09-09 | E10: ='[1]DATA ELV'!J100 -> 3ع ت01 | I10: غ | J10: غ | N10: 2
A11: 93 | B11: ='[1]DATA ELV'!B101 -> نواوي وائل | C11: ='[1]DATA ELV'!C101 -> 1000213270245200 | D11: ='[1]DATA ELV'!G101 -> 2002-11-01 | E11: ='[1]DATA ELV'!J101 -> 3ع ت01 | N11: 0
A12: 150 | B12: ='[1]DATA ELV'!B158 -> مبيتيل حواء | C12: ='[1]DATA ELV'!C158 -> 1100413270552600 | D12: ='[1]DATA ELV'!G158 -> 2004-08-14 | E12: ='[1]DATA ELV'!J158 -> 3أ ف01 | N12: 0
A13: 199 | B13: ='[1]DATA ELV'!B207 -> قطي أيوب | C13: ='[1]DATA ELV'!C207 -> 1000313270127100 | D13: ='[1]DATA ELV'!G207 -> 2003-11-15 | E13: ='[1]DATA ELV'!J207 -> 3لغات /إسبا | N13: 0
A14: 200 | B14: ='[1]DATA ELV'!B208 -> أمبارك ليلى | C14: ='[1]DATA ELV'!C208 -> 1100513270108400 | D14: ='[1]DATA ELV'!G208 -> 2005-05-10 | E14: ='[1]DATA ELV'!J208 -> 2ت ر/هم | N14: 0
A15: 428 | B15: ='[1]DATA ELV'!B436 -> موقاس إحسان | C15: ='[1]DATA ELV'!C436 -> 1100513270132200 | D15: ='[1]DATA ELV'!G436 -> 2005-05-31 | E15: ='[1]DATA ELV'!J436 -> 2لغات /إسبا | J15: غ | M15: غ | N15: 2
A16: 429 | B16: ='[1]DATA ELV'!B437 -> الفضيل دعاء | C16: ='[1]DATA ELV'!C437 -> 1100613270196100 | D16: ='[1]DATA ELV'!G437 -> 2006-07-15 | E16: ='[1]DATA ELV'!J437 -> ج م ع تك01 | M16: غ | N16: 1
A17: 430 | B17: ='[1]DATA ELV'!B438 -> الفضيل ياسر | C17: ='[1]DATA ELV'!C438 -> 1000613270355800 | D17: ='[1]DATA ELV'!G438 -> 2006-12-02 | E17: ='[1]DATA ELV'!J438 -> ج م ع تك01 | I17: غ | L17: غ | M17: غ | N17: 3
A18: 694 | B18: ='[1]DATA ELV'!B702 -> مفيتح كوثر | C18: ='[1]DATA ELV'!C702 -> 1100613270301500 | D18: ='[1]DATA ELV'!G702 -> 2006-10-13 | E18: ='[1]DATA ELV'!J702 -> ج م أ02 | F18: غ | G18: غ | H18: غ | I18: غ | J18: غ | K18: غ | L18: غ | M18: غ | N18: 8
A19: 695 | B19: ='[1]DATA ELV'!B703 -> موساوي عمارة | C19: ='[1]DATA ELV'!C703 -> 1100413270354800 | D19: ='[1]DATA ELV'!G703 -> 2004-12-28 | E19: ='[1]DATA ELV'!J703 -> ج م أ02 | N19: 0

Sheet RAP JOUR
B1: الجمهورية الجزائرية الديمقراطية الشعبية
B2: وزارة التربية الوطنية
B3: =[1]MAIN!A5 -> مديرية التربية لولاية تلمسان
B4: =[1]MAIN!A9 -> ثانوية الخوارزمي - مغنية | J4: ليوم : | L4: الجمعة | O4: 2022-03-11
D5: مواظبــــــة التلاميـــــذ :
D6: الخارجية | J6: الحجم الساعي و نسب الغياب | N6: نصف داخلي
B7: المستويات | D7: المسجلون | G7: الغائبون | J7: الحجم الساعي اليومي | K7: الحجم الساعي اليومي | L7: عدد ساعات الغياب | M7: نسبة مئوية | N7: المسجلون | Q7: الغائبون
D9: ذ | E9: إ | F9: مج | G9: ذ | H9: إ | I9: مج | N9: ذ | O9: إ | P9: مج | Q9: ذ | R9: إ | S9: مج
B10: السنة االأولى | D10: =[1]TI3DAD!AE31 -> 141 | E10: =[1]TI3DAD!AF31 -> 122 | F10: =SUM(D10:E10) -> 263 | J10: =G191 -> 73 | K10: =J10*F10 -> 19199 | L10: 0 | M10: =L10/K10 -> 0 | N10: =[1]TI3DAD!Y31 -> 95 | O10: =[1]TI3DAD!Z31 -> 80 | P10: =SUM(N10:O10) -> 175
B11: السنة الثانية | D11: =[1]TI3DAD!AE30 -> 86 | E11: =[1]TI3DAD!AF30 -> 139 | F11: 225 | J11: =H191 -> 49 | K11: =J11*F11 -> 11025 | L11: 0 | M11: =L11/K11 -> 0 | N11: =[1]TI3DAD!Y30 -> 50 | O11: =[1]TI3DAD!Z30 -> 104 | P11: =SUM(N11:O11) -> 154
B12: السنة الثالثة | D12: =[1]TI3DAD!AE29 -> 59 | E12: =[1]TI3DAD!AF29 -> 135 | F12: =SUM(D12:E12) -> 194 | J12: =I191 -> 50 | K12: 9700 | L12: 0 | M12: 0 | N12: =[1]TI3DAD!Y29 -> 35 | O12: =[1]TI3DAD!Z29 -> 88 | P12: 123
B13: المجموع | D13: =SUM(D10:D12) -> 286 | E13: =SUM(E10:E12) -> 396 | F13: 682 | J13: =SUM(J10:J12) -> 172 | K13: =J13*F13 -> 117304 | L13: =SUM(L10:L12) -> 0 | M13: 0 | N13: =SUM(N10:N12) -> 180 | O13: =SUM(O10:O12) -> 272 | P13: 452
D14: مواظبــــــة الأســــاتذة :
B15: الرقم | C15: اسم و لقب الأستاذ | E15: التخصص | G15: ح1 | H15: ح2 | I15: ح3 | J15: ح4 | K15: ح5 | L15: ح6 | M15: ح7 | N15: ح8 | O15: ح9 | P15: ح10 | Q15: ح11 | R15: سبب الغياب
A16: 5 | B16: 1 | C16: =IFERROR(VLOOKUP(A16,T,2,0),0) -> مالو ياسمينة | E16: =IFERROR(VLOOKUP(A16,T,4,0),"") -> رياضيات | G16: =IFERROR(VLOOKUP(A16,T,6,0),0) -> 0 | H16: =IFERROR(VLOOKUP(A16,T,7,0),0) -> 0 | I16: =IFERROR(VLOOKUP(A16,T,8,0),0) -> 0 | J16: =IFERROR(VLOOKUP(A16,T,9,0),0) -> 0 | K16: =IFERROR(VLOOKUP(A16,T,10,0),0) -> 0 | L16: =IFERROR(VLOOKUP(A16,T,11,0),0) -> 1أ2/2 | M16: =IFERROR(VLOOKUP(A16,T,12,0),0) -> 2ع2/2 | N16: =IFERROR(VLOOKUP(A16,T,13,0),0) -> 2ع1/2 | O16: =IFERROR(VLOOKUP(A16,T,14,0),0) -> 0 | P16: =IFERROR(VLOOKUP(A16,T,15,0),0) -> 0 | Q16: =IFERROR(VLOOKUP(A16,T,16,0),0) -> 0
B17: 2 | C17: 0 | G17: 0 | H17: 0 | I17: 0 | J17: 0 | K17: 0 | L17: 0 | M17: 0 | N17: 0 | O17: 0 | P17: 0 | Q17: 0
B18: 3 | C18: 0 | G18: 0 | H18: 0 | I18: 0 | J18: 0 | K18: 0 | L18: 0 | M18: 0 | N18: 0 | O18: 0 | P18: 0 | Q18: 0
B19: 4 | C19: 0 | G19: 0 | H19: 0 | I19: 0 | J19: 0 | K19: 0 | L19: 0 | M19: 0 | N19: 0 | O19: 0 | P19: 0 | Q19: 0
B20: 5 | C20: 0 | G20: 0 | H20: 0 | I20: 0 | J20: 0 | K20: 0 | L20: 0 | M20: 0 | N20: 0 | O20: 0 | P20: 0 | Q20: 0
B21: 6 | C21: 0 | G21: 0 | H21: 0 | I21: 0 | J21: 0 | K21: 0 | L21: 0 | M21: 0 | N21: 0 | O21: 0 | P21: 0 | Q21: 0
B22: 7 | C22: 0 | G22: 0 | H22: 0 | I22: 0 | J22: 0 | K22: 0 | L22: 0 | M22: 0 | N22: 0 | O22: 0 | P22: 0 | Q22: 0
B23: 8 | C23: 0 | G23: 0 | H23: 0 | I23: 0 | J23: 0 | K23: 0 | L23: 0 | M23: 0 | N23: 0 | O23: 0 | P23: 0 | Q23: 0
B24: 9 | C24: 0 | G24: 0 | H24: 0 | I24: 0 | J24: 0 | K24: 0 | L24: 0 | M24: 0 | N24: 0 | O24: 0 | P24: 0 | Q24: 0
B25: 10 | C25: 0 | G25: 0 | H25: 0 | I25: 0 | J25: 0 | K25: 0 | L25: 0 | M25: 0 | N25: 0 | O25: 0 | P25: 0 | Q25: 0
B26: 11 | C26: 0 | G26: 0 | H26: 0 | I26: 0 | J26: 0 | K26: 0 | L26: 0 | M26: 0 | N26: 0 | O26: 0 | P26: 0 | Q26: 0
B27: 12 | C27: 0 | G27: 0 | H27: 0 | I27: 0 | J27: 0 | K27: 0 | L27: 0 | M27: 0 | N27: 0 | O27: 0 | P27: 0 | Q27: 0
B28: 13 | C28: 0 | G28: 0 | H28: 0 | I28: 0 | J28: 0 | K28: 0 | L28: 0 | M28: 0 | N28: 0 | O28: 0 | P28: 0 | Q28: 0
B29: 14 | C29: 0 | G29: 0 | H29: 0 | I29: 0 | J29: 0 | K29: 0 | L29: 0 | M29: 0 | N29: 0 | O29: 0 | P29: 0 | Q29: 0
B30: 15 | C30: 0 | G30: 0 | H30: 0 | I30: 0 | J30: 0 | K30: 0 | L30: 0 | M30: 0 | N30: 0 | O30: 0 | P30: 0 | Q30: 0
B31: 16 | C31: 0 | G31: 0 | H31: 0 | I31: 0 | J31: 0 | K31: 0 | L31: 0 | M31: 0 | N31: 0 | O31: 0 | P31: 0 | Q31: 0
B32: 17 | C32: 0 | G32: 0 | H32: 0 | I32: 0 | J32: 0 | K32: 0 | L32: 0 | M32: 0 | N32: 0 | O32: 0 | P32: 0 | Q32: 0
B33: 18 | C33: 0 | G33: 0 | H33: 0 | I33: 0 | J33: 0 | K33: 0 | L33: 0 | M33: 0 | N33: 0 | O33: 0 | P33: 0 | Q33: 0
B34: 19 | C34: 0 | G34: 0 | H34: 0 | I34: 0 | J34: 0 | K34: 0 | L34: 0 | M34: 0 | N34: 0 | O34: 0 | P34: 0 | Q34: 0
B35: 20 | C35: 0 | G35: 0 | H35: 0 | I35: 0 | J35: 0 | K35: 0 | L35: 0 | M35: 0 | N35: 0 | O35: 0 | P35: 0 | Q35: 0
B36: 21 | C36: 0 | G36: 0 | H36: 0 | I36: 0 | J36: 0 | K36: 0 | L36: 0 | M36: 0 | N36: 0 | O36: 0 | P36: 0 | Q36: 0
B37: 22 | C37: 0 | G37: 0 | H37: 0 | I37: 0 | J37: 0 | K37: 0 | L37: 0 | M37: 0 | N37: 0 | O37: 0 | P37: 0 | Q37: 0
B38: 23 | C38: 0 | G38: 0 | H38: 0 | I38: 0 | J38: 0 | K38: 0 | L38: 0 | M38: 0 | N38: 0 | O38: 0 | P38: 0 | Q38: 0
B39: 24 | C39: 0 | G39: 0 | H39: 0 | I39: 0 | J39: 0 | K39: 0 | L39: 0 | M39: 0 | N39: 0 | O39: 0 | P39: 0 | Q39: 0
B40: 25 | C40: 0 | G40: 0 | H40: 0 | I40: 0 | J40: 0 | K40: 0 | L40: 0 | M40: 0 | N40: 0 | O40: 0 | P40: 0 | Q40: 0
B41: 26 | C41: 0 | G41: 0 | H41: 0 | I41: 0 | J41: 0 | K41: 0 | L41: 0 | M41: 0 | N41: 0 | O41: 0 | P41: 0 | Q41: 0
B42: 27 | C42: 0 | G42: 0 | H42: 0 | I42: 0 | J42: 0 | K42: 0 | L42: 0 | M42: 0 | N42: 0 | O42: 0 | P42: 0 | Q42: 0
B43: 28 | C43: 0 | G43: 0 | H43: 0 | I43: 0 | J43: 0 | K43: 0 | L43: 0 | M43: 0 | N43: 0 | O43: 0 | P43: 0 | Q43: 0
B44: 29 | C44: 0 | G44: 0 | H44: 0 | I44: 0 | J44: 0 | K44: 0 | L44: 0 | M44: 0 | N44: 0 | O44: 0 | P44: 0 | Q44: 0
B45: 30 | C45: 0 | G45: 0 | H45: 0 | I45: 0 | J45: 0 | K45: 0 | L45: 0 | M45: 0 | N45: 0 | O45: 0 | P45: 0 | Q45: 0
B46: عدد الأســـــاتذة العاملين | H46: عدد الأســـاتذة الغائبون | L46: =COUNTIF(C16:C45,"<>0") -> 1 | M46: =COUNTIF(E16:E45,"<>0") -> 30 | N46: نسبة غياب الأساتذة
B47: عدد الحصص المبرمجة | H47: عدد الحصص الضائعة | L47: =COUNTIF(P,"<>0") -> 3 | N47: نسبة الحصص الضائعة
D48: تعويض الحصص الضائعة :
B49: الرقم | C49: اسم و لقب الأستاذ | E49: التخصص | G49: ح1 | H49: ح2 | I49: ح3 | J49: ح4 | K49: ح5 | L49: ح6 | M49: ح7 | N49: ح8 | O49: ح9 | P49: ح10 | Q49: ح11 | R49: ملاحظات
B50: 1
B51: 2
B52: 3
B53: 4
D54: غيابات و تأخــــرات مساعدي و مشرفي التربية و موظفي عقود ما قبل التشغيل :
B55: الرقم | C55: اسم الموظف | G55: الرتبة | J55: مدة الغيـــــــــــــــــــــــــــــــــاب | O55: سبب الغياب | R55: ملاحظات
A62: الغيـــــــــــــــــــــــــــابات اليــــــــــــــومية للتلاميذ | K62: يوم : | M62: =L4 -> الجمعة | P62: =O4 -> 2022-03-11
B63: الرقم | C63: السنة الأولى | F63: السنة الثانية | J63: السنة الثالثة | N63: قضايا سلــوكية /تقارير
C64: اسم و لقب التلميذ | E64: القسم | F64: اسم و لقب التلميذ | I64: القسم | J64: اسم و لقب التلميذ | M64: القسم | N64: اسم التلميذ | P64: القسم | Q64: المادة | R64: نوع التقرير
B65: 1 | W65: =IFERROR(VLOOKUP(E65,'[1]DATA VALID'!$D$2:$E$25,2,0),"") -> 0 | X65: =IFERROR(VLOOKUP(I65,'[1]DATA VALID'!$D$2:$E$25,2,0),"") -> 0 | Y65: =IFERROR(VLOOKUP(M65,'[1]DATA VALID'!$D$2:$E$25,2,0),"") -> 0 | AA65: =IF(C65="","",INDEX('[1]DATA ELV'!$F:$F,MATCH(C65,'[1]DATA ELV'!$B:$B,0))) ->  | AB65: =IF(F65="","",INDEX('[1]DATA ELV'!$F:$F,MATCH(F65,'[1]DATA ELV'!$B:$B,0))) ->  | AC65: =IF(J65="","",INDEX('[1]DATA ELV'!$F:$F,MATCH(J65,'[1]DATA ELV'!$B:$B,0))) -> 
B66: 2 | W66: =IFERROR(VLOOKUP(E66,'[1]DATA VALID'!$D$2:$E$25,2,0),"") -> 0 | X66: =IFERROR(VLOOKUP(I66,'[1]DATA VALID'!$D$2:$E$25,2,0),"") -> 0 | Y66: =IFERROR(VLOOKUP(M66,'[1]DATA VALID'!$D$2:$E$25,2,0),"") -> 0 | AA66: =IF(C66="","",INDEX('[1]DATA ELV'!$F:$F,MATCH(C66,'[1]DATA ELV'!$B:$B,0))) ->  | AB66: =IF(F66="","",INDEX('[1]DATA ELV'!$F:$F,MATCH(F66,'[1]DATA ELV'!$B:$B,0))) ->  | AC66: =IF(J66="","",INDEX('[1]DATA ELV'!$F:$F,MATCH(J66,'[1]DATA ELV'!$B:$B,0))) -> 
B67: 3 | W67: =IFERROR(VLOOKUP(E67,'[1]DATA VALID'!$D$2:$E$25,2,0),"") -> 0 | X67: =IFERROR(VLOOKUP(I67,'[1]DATA VALID'!$D$2:$E$25,2,0),"") -> 0 | Y67: =IFERROR(VLOOKUP(M67,'[1]DATA VALID'!$D$2:$E$25,2,0),"") -> 0 | AA67: =IF(C67="","",INDEX('[1]DATA ELV'!$F:$F,MATCH(C67,'[1]DATA ELV'!$B:$B,0))) ->  | AB67: =IF(F67="","",INDEX('[1]DATA ELV'!$F:$F,MATCH(F67,'[1]DATA ELV'!$B:$B,0))) ->  | AC67: =IF(J67="","",INDEX('[1]DATA ELV'!$F:$F,MATCH(J67,'[1]DATA ELV'!$B:$B,0))) -> 
B68: 4 | W68: =IFERROR(VLOOKUP(E68,'[1]DATA VALID'!$D$2:$E$25,2,0),"") -> 0 | X68: =IFERROR(VLOOKUP(I68,'[1]DATA VALID'!$D$2:$E$25,2,0),"") -> 0 | Y68: =IFERROR(VLOOKUP(M68,'[1]DATA VALID'!$D$2:$E$25,2,0),"") -> 0 | AA68: =IF(C68="","",INDEX('[1]DATA ELV'!$F:$F,MATCH(C68,'[1]DATA ELV'!$B:$B,0))) ->  | AB68: =IF(F68="","",INDEX('[1]DATA ELV'!$F:$F,MATCH(F68,'[1]DATA ELV'!$B:$B,0))) ->  | AC68: =IF(J68="","",INDEX('[1]DATA ELV'!$F:$F,MATCH(J68,'[1]DATA ELV'!$B:$B,0))) -> 
B69: 5 | W69: =IFERROR(VLOOKUP(E69,'[1]DATA VALID'!$D$2:$E$25,2,0),"") -> 0 | X69: =IFERROR(VLOOKUP(I69,'[1]DATA VALID'!$D$2:$E$25,2,0),"") -> 0 | Y69: =IFERROR(VLOOKUP(M69,'[1]DATA VALID'!$D$2:$E$25,2,0),"") -> 0 | AA69: =IF(C69="","",INDEX('[1]DATA ELV'!$F:$F,MATCH(C69,'[1]DATA ELV'!$B:$B,0))) ->  | AB69: =IF(F69="","",INDEX('[1]DATA ELV'!$F:$F,MATCH(F69,'[1]DATA ELV'!$B:$B,0))) ->  | AC69: =IF(J69="","",INDEX('[1]DATA ELV'!$F:$F,MATCH(J69,'[1]DATA ELV'!$B:$B,0))) -> 
B70: 6 | W70: =IFERROR(VLOOKUP(E70,'[1]DATA VALID'!$D$2:$E$25,2,0),"") -> 0 | X70: =IFERROR(VLOOKUP(I70,'[1]DATA VALID'!$D$2:$E$25,2,0),"") -> 0 | Y70: =IFERROR(VLOOKUP(M70,'[1]DATA VALID'!$D$2:$E$25,2,0),"") -> 0 | AA70: =IF(C70="","",INDEX('[1]DATA ELV'!$F:$F,MATCH(C70,'[1]DATA ELV'!$B:$B,0))) ->  | AB70: =IF(F70="","",INDEX('[1]DATA ELV'!$F:$F,MATCH(F70,'[1]DATA ELV'!$B:$B,0))) ->  | AC70: =IF(J70="","",INDEX('[1]DATA ELV'!$F:$F,MATCH(J70,'[1]DATA ELV'!$B:$B,0))) -> 
B71: 7 | N71: الحــوادث المدرسية | W71: =IFERROR(VLOOKUP(E71,'[1]DATA VALID'!$D$2:$E$25,2,0),"") -> 0 | X71: =IFERROR(VLOOKUP(I71,'[1]DATA VALID'!$D$2:$E$25,2,0),"") -> 0 | Y71: =IFERROR(VLOOKUP(M71,'[1]DATA VALID'!$D$2:$E$25,2,0),"") -> 0 | AA71: =IF(C71="","",INDEX('[1]DATA ELV'!$F:$F,MATCH(C71,'[1]DATA ELV'!$B:$B,0))) ->  | AB71: =IF(F71="","",INDEX('[1]DATA ELV'!$F:$F,MATCH(F71,'[1]DATA ELV'!$B:$B,0))) ->  | AC71: =IF(J71="","",INDEX('[1]DATA ELV'!$F:$F,MATCH(J71,'[1]DATA ELV'!$B:$B,0))) -> 
B72: 8 | W72: =IFERROR(VLOOKUP(E72,'[1]DATA VALID'!$D$2:$E$25,2,0),"") -> 0 | X72: =IFERROR(VLOOKUP(I72,'[1]DATA VALID'!$D$2:$E$25,2,0),"") -> 0 | Y72: =IFERROR(VLOOKUP(M72,'[1]DATA VALID'!$D$2:$E$25,2,0),"") -> 0 | AA72: =IF(C72="","",INDEX('[1]DATA ELV'!$F:$F,MATCH(C72,'[1]DATA ELV'!$B:$B,0))) ->  | AB72: =IF(F72="","",INDEX('[1]DATA ELV'!$F:$F,MATCH(F72,'[1]DATA ELV'!$B:$B,0))) ->  | AC72: =IF(J72="","",INDEX('[1]DATA ELV'!$F:$F,MATCH(J72,'[1]DATA ELV'!$B:$B,0))) -> 
B73: 9 | W73: =IFERROR(VLOOKUP(E73,'[1]DATA VALID'!$D$2:$E$25,2,0),"") -> 0 | X73: =IFERROR(VLOOKUP(I73,'[1]DATA VALID'!$D$2:$E$25,2,0),"") -> 0 | Y73: =IFERROR(VLOOKUP(M73,'[1]DATA VALID'!$D$2:$E$25,2,0),"") -> 0 | AA73: =IF(C73="","",INDEX('[1]DATA ELV'!$F:$F,MATCH(C73,'[1]DATA ELV'!$B:$B,0))) ->  | AB73: =IF(F73="","",INDEX('[1]DATA ELV'!$F:$F,MATCH(F73,'[1]DATA ELV'!$B:$B,0))) ->  | AC73: =IF(J73="","",INDEX('[1]DATA ELV'!$F:$F,MATCH(J73,'[1]DATA ELV'!$B:$B,0))) -> 
B74: 10 | W74: =IFERROR(VLOOKUP(E74,'[1]DATA VALID'!$D$2:$E$25,2,0),"") -> 0 | X74: =IFERROR(VLOOKUP(I74,'[1]DATA VALID'!$D$2:$E$25,2,0),"") -> 0 | Y74: =IFERROR(VLOOKUP(M74,'[1]DATA VALID'!$D$2:$E$25,2,0),"") -> 0 | AA74: =IF(C74="","",INDEX('[1]DATA ELV'!$F:$F,MATCH(C74,'[1]DATA ELV'!$B:$B,0))) ->  | AB74: =IF(F74="","",INDEX('[1]DATA ELV'!$F:$F,MATCH(F74,'[1]DATA ELV'!$B:$B,0))) ->  | AC74: =IF(J74="","",INDEX('[1]DATA ELV'!$F:$F,MATCH(J74,'[1]DATA ELV'!$B:$B,0))) -> 
B75: 11 | W75: =IFERROR(VLOOKUP(E75,'[1]DATA VALID'!$D$2:$E$25,2,0),"") -> 0 | X75: =IFERROR(VLOOKUP(I75,'[1]DATA VALID'!$D$2:$E$25,2,0),"") -> 0 | Y75: =IFERROR(VLOOKUP(M75,'[1]DATA VALID'!$D$2:$E$25,2,0),"") -> 0 | AA75: =IF(C75="","",INDEX('[1]DATA ELV'!$F:$F,MATCH(C75,'[1]DATA ELV'!$B:$B,0))) ->  | AB75: =IF(F75="","",INDEX('[1]DATA ELV'!$F:$F,MATCH(F75,'[1]DATA ELV'!$B:$B,0))) ->  | AC75: =IF(J75="","",INDEX('[1]DATA ELV'!$F:$F,MATCH(J75,'[1]DATA ELV'!$B:$B,0))) -> 
B76: 12 | N76: الصحــــــة المدرسية | W76: =IFERROR(VLOOKUP(E76,'[1]DATA VALID'!$D$2:$E$25,2,0),"") -> 0 | X76: =IFERROR(VLOOKUP(I76,'[1]DATA VALID'!$D$2:$E$25,2,0),"") -> 0 | Y76: =IFERROR(VLOOKUP(M76,'[1]DATA VALID'!$D$2:$E$25,2,0),"") -> 0 | AA76: =IF(C76="","",INDEX('[1]DATA ELV'!$F:$F,MATCH(C76,'[1]DATA ELV'!$B:$B,0))) ->  | AB76: =IF(F76="","",INDEX('[1]DATA ELV'!$F:$F,MATCH(F76,'[1]DATA ELV'!$B:$B,0))) ->  | AC76: =IF(J76="","",INDEX('[1]DATA ELV'!$F:$F,MATCH(J76,'[1]DATA ELV'!$B:$B,0))) -> 
B77: 13 | W77: =IFERROR(VLOOKUP(E77,'[1]DATA VALID'!$D$2:$E$25,2,0),"") -> 0 | X77: =IFERROR(VLOOKUP(I77,'[1]DATA VALID'!$D$2:$E$25,2,0),"") -> 0 | Y77: =IFERROR(VLOOKUP(M77,'[1]DATA VALID'!$D$2:$E$25,2,0),"") -> 0 | AA77: =IF(C77="","",INDEX('[1]DATA ELV'!$F:$F,MATCH(C77,'[1]DATA ELV'!$B:$B,0))) ->  | AB77: =IF(F77="","",INDEX('[1]DATA ELV'!$F:$F,MATCH(F77,'[1]DATA ELV'!$B:$B,0))) ->  | AC77: =IF(J77="","",INDEX('[1]DATA ELV'!$F:$F,MATCH(J77,'[1]DATA ELV'!$B:$B,0))) -> 
B78: 14 | W78: =IFERROR(VLOOKUP(E78,'[1]DATA VALID'!$D$2:$E$25,2,0),"") -> 0 | X78: =IFERROR(VLOOKUP(I78,'[1]DATA VALID'!$D$2:$E$25,2,0),"") -> 0 | Y78: =IFERROR(VLOOKUP(M78,'[1]DATA VALID'!$D$2:$E$25,2,0),"") -> 0 | AA78: =IF(C78="","",INDEX('[1]DATA ELV'!$F:$F,MATCH(C78,'[1]DATA ELV'!$B:$B,0))) ->  | AB78: =IF(F78="","",INDEX('[1]DATA ELV'!$F:$F,MATCH(F78,'[1]DATA ELV'!$B:$B,0))) ->  | AC78: =IF(J78="","",INDEX('[1]DATA ELV'!$F:$F,MATCH(J78,'[1]DATA ELV'!$B:$B,0))) -> 
B79: 15 | W79: =IFERROR(VLOOKUP(E79,'[1]DATA VALID'!$D$2:$E$25,2,0),"") -> 0 | X79: =IFERROR(VLOOKUP(I79,'[1]DATA VALID'!$D$2:$E$25,2,0),"") -> 0 | Y79: =IFERROR(VLOOKUP(M79,'[1]DATA VALID'!$D$2:$E$25,2,0),"") -> 0 | AA79: =IF(C79="","",INDEX('[1]DATA ELV'!$F:$F,MATCH(C79,'[1]DATA ELV'!$B:$B,0))) ->  | AB79: =IF(F79="","",INDEX('[1]DATA ELV'!$F:$F,MATCH(F79,'[1]DATA ELV'!$B:$B,0))) ->  | AC79: =IF(J79="","",INDEX('[1]DATA ELV'!$F:$F,MATCH(J79,'[1]DATA ELV'!$B:$B,0))) -> 
B80: 16 | N80: ندوات/مجالس و زيارات | W80: =IFERROR(VLOOKUP(E80,'[1]DATA VALID'!$D$2:$E$25,2,0),"") -> 0 | X80: =IFERROR(VLOOKUP(I80,'[1]DATA VALID'!$D$2:$E$25,2,0),"") -> 0 | Y80: =IFERROR(VLOOKUP(M80,'[1]DATA VALID'!$D$2:$E$25,2,0),"") -> 0 | AA80: =IF(C80="","",INDEX('[1]DATA ELV'!$F:$F,MATCH(C80,'[1]DATA ELV'!$B:$B,0))) ->  | AB80: =IF(F80="","",INDEX('[1]DATA ELV'!$F:$F,MATCH(F80,'[1]DATA ELV'!$B:$B,0))) ->  | AC80: =IF(J80="","",INDEX('[1]DATA ELV'!$F:$F,MATCH(J80,'[1]DATA ELV'!$B:$B,0))) -> 
B81: 17 | W81: =IFERROR(VLOOKUP(E81,'[1]DATA VALID'!$D$2:$E$25,2,0),"") -> 0 | X81: =IFERROR(VLOOKUP(I81,'[1]DATA VALID'!$D$2:$E$25,2,0),"") -> 0 | Y81: =IFERROR(VLOOKUP(M81,'[1]DATA VALID'!$D$2:$E$25,2,0),"") -> 0 | AA81: =IF(C81="","",INDEX('[1]DATA ELV'!$F:$F,MATCH(C81,'[1]DATA ELV'!$B:$B,0))) ->  | AB81: =IF(F81="","",INDEX('[1]DATA ELV'!$F:$F,MATCH(F81,'[1]DATA ELV'!$B:$B,0))) ->  | AC81: =IF(J81="","",INDEX('[1]DATA ELV'!$F:$F,MATCH(J81,'[1]DATA ELV'!$B:$B,0))) -> 
B82: 18 | W82: =IFERROR(VLOOKUP(E82,'[1]DATA VALID'!$D$2:$E$25,2,0),"") -> 0 | X82: =IFERROR(VLOOKUP(I82,'[1]DATA VALID'!$D$2:$E$25,2,0),"") -> 0 | Y82: =IFERROR(VLOOKUP(M82,'[1]DATA VALID'!$D$2:$E$25,2,0),"") -> 0 | AA82: =IF(C82="","",INDEX('[1]DATA ELV'!$F:$F,MATCH(C82,'[1]DATA ELV'!$B:$B,0))) ->  | AB82: =IF(F82="","",INDEX('[1]DATA ELV'!$F:$F,MATCH(F82,'[1]DATA ELV'!$B:$B,0))) ->  | AC82: =IF(J82="","",INDEX('[1]DATA ELV'!$F:$F,MATCH(J82,'[1]DATA ELV'!$B:$B,0))) -> 
B83: 19 | W83: =IFERROR(VLOOKUP(E83,'[1]DATA VALID'!$D$2:$E$25,2,0),"") -> 0 | X83: =IFERROR(VLOOKUP(I83,'[1]DATA VALID'!$D$2:$E$25,2,0),"") -> 0 | Y83: =IFERROR(VLOOKUP(M83,'[1]DATA VALID'!$D$2:$E$25,2,0),"") -> 0 | AA83: =IF(C83="","",INDEX('[1]DATA ELV'!$F:$F,MATCH(C83,'[1]DATA ELV'!$B:$B,0))) ->  | AB83: =IF(F83="","",INDEX('[1]DATA ELV'!$F:$F,MATCH(F83,'[1]DATA ELV'!$B:$B,0))) ->  | AC83: =IF(J83="","",INDEX('[1]DATA ELV'!$F:$F,MATCH(J83,'[1]DATA ELV'!$B:$B,0))) -> 
B84: 20 | W84: =IFERROR(VLOOKUP(E84,'[1]DATA VALID'!$D$2:$E$25,2,0),"") -> 0 | X84: =IFERROR(VLOOKUP(I84,'[1]DATA VALID'!$D$2:$E$25,2,0),"") -> 0 | Y84: =IFERROR(VLOOKUP(M84,'[1]DATA VALID'!$D$2:$E$25,2,0),"") -> 0 | AA84: =IF(C84="","",INDEX('[1]DATA ELV'!$F:$F,MATCH(C84,'[1]DATA ELV'!$B:$B,0))) ->  | AB84: =IF(F84="","",INDEX('[1]DATA ELV'!$F:$F,MATCH(F84,'[1]DATA ELV'!$B:$B,0))) ->  | AC84: =IF(J84="","",INDEX('[1]DATA ELV'!$F:$F,MATCH(J84,'[1]DATA ELV'!$B:$B,0))) -> 
B85: 21 | N85: شهادات مدرسية | Q85: العدد | W85: =IFERROR(VLOOKUP(E85,'[1]DATA VALID'!$D$2:$E$25,2,0),"") -> 0 | X85: =IFERROR(VLOOKUP(I85,'[1]DATA VALID'!$D$2:$E$25,2,0),"") -> 0 | Y85: =IFERROR(VLOOKUP(M85,'[1]DATA VALID'!$D$2:$E$25,2,0),"") -> 0 | AA85: =IF(C85="","",INDEX('[1]DATA ELV'!$F:$F,MATCH(C85,'[1]DATA ELV'!$B:$B,0))) ->  | AB85: =IF(F85="","",INDEX('[1]DATA ELV'!$F:$F,MATCH(F85,'[1]DATA ELV'!$B:$B,0))) ->  | AC85: =IF(J85="","",INDEX('[1]DATA ELV'!$F:$F,MATCH(J85,'[1]DATA ELV'!$B:$B,0))) -> 
B86: 22 | N86: من ...... | Q86: إلى ..... | W86: =IFERROR(VLOOKUP(E86,'[1]DATA VALID'!$D$2:$E$25,2,0),"") -> 0 | X86: =IFERROR(VLOOKUP(I86,'[1]DATA VALID'!$D$2:$E$25,2,0),"") -> 0 | Y86: =IFERROR(VLOOKUP(M86,'[1]DATA VALID'!$D$2:$E$25,2,0),"") -> 0 | AA86: =IF(C86="","",INDEX('[1]DATA ELV'!$F:$F,MATCH(C86,'[1]DATA ELV'!$B:$B,0))) ->  | AB86: =IF(F86="","",INDEX('[1]DATA ELV'!$F:$F,MATCH(F86,'[1]DATA ELV'!$B:$B,0))) ->  | AC86: =IF(J86="","",INDEX('[1]DATA ELV'!$F:$F,MATCH(J86,'[1]DATA ELV'!$B:$B,0))) -> 
B87: 23 | N87: حصص الدعم | W87: =IFERROR(VLOOKUP(E87,'[1]DATA VALID'!$D$2:$E$25,2,0),"") -> 0 | X87: =IFERROR(VLOOKUP(I87,'[1]DATA VALID'!$D$2:$E$25,2,0),"") -> 0 | Y87: =IFERROR(VLOOKUP(M87,'[1]DATA VALID'!$D$2:$E$25,2,0),"") -> 0 | AA87: =IF(C87="","",INDEX('[1]DATA ELV'!$F:$F,MATCH(C87,'[1]DATA ELV'!$B:$B,0))) ->  | AB87: =IF(F87="","",INDEX('[1]DATA ELV'!$F:$F,MATCH(F87,'[1]DATA ELV'!$B:$B,0))) ->  | AC87: =IF(J87="","",INDEX('[1]DATA ELV'!$F:$F,MATCH(J87,'[1]DATA ELV'!$B:$B,0))) -> 
B88: 24 | N88: الأستاذ | P88: المادة | R88: القسم | S88: الحصة | W88: =IFERROR(VLOOKUP(E88,'[1]DATA VALID'!$D$2:$E$25,2,0),"") -> 0 | X88: =IFERROR(VLOOKUP(I88,'[1]DATA VALID'!$D$2:$E$25,2,0),"") -> 0 | Y88: =IFERROR(VLOOKUP(M88,'[1]DATA VALID'!$D$2:$E$25,2,0),"") -> 0 | AA88: =IF(C88="","",INDEX('[1]DATA ELV'!$F:$F,MATCH(C88,'[1]DATA ELV'!$B:$B,0))) ->  | AB88: =IF(F88="","",INDEX('[1]DATA ELV'!$F:$F,MATCH(F88,'[1]DATA ELV'!$B:$B,0))) ->  | AC88: =IF(J88="","",INDEX('[1]DATA ELV'!$F:$F,MATCH(J88,'[1]DATA ELV'!$B:$B,0))) -> 
B89: 25 | W89: =IFERROR(VLOOKUP(E89,'[1]DATA VALID'!$D$2:$E$25,2,0),"") -> 0 | X89: =IFERROR(VLOOKUP(I89,'[1]DATA VALID'!$D$2:$E$25,2,0),"") -> 0 | Y89: =IFERROR(VLOOKUP(M89,'[1]DATA VALID'!$D$2:$E$25,2,0),"") -> 0 | AA89: =IF(C89="","",INDEX('[1]DATA ELV'!$F:$F,MATCH(C89,'[1]DATA ELV'!$B:$B,0))) ->  | AB89: =IF(F89="","",INDEX('[1]DATA ELV'!$F:$F,MATCH(F89,'[1]DATA ELV'!$B:$B,0))) ->  | AC89: =IF(J89="","",INDEX('[1]DATA ELV'!$F:$F,MATCH(J89,'[1]DATA ELV'!$B:$B,0))) -> 
B90: 26 | W90: =IFERROR(VLOOKUP(E90,'[1]DATA VALID'!$D$2:$E$25,2,0),"") -> 0 | X90: =IFERROR(VLOOKUP(I90,'[1]DATA VALID'!$D$2:$E$25,2,0),"") -> 0 | Y90: =IFERROR(VLOOKUP(M90,'[1]DATA VALID'!$D$2:$E$25,2,0),"") -> 0 | AA90: =IF(C90="","",INDEX('[1]DATA ELV'!$F:$F,MATCH(C90,'[1]DATA ELV'!$B:$B,0))) ->  | AB90: =IF(F90="","",INDEX('[1]DATA ELV'!$F:$F,MATCH(F90,'[1]DATA ELV'!$B:$B,0))) ->  | AC90: =IF(J90="","",INDEX('[1]DATA ELV'!$F:$F,MATCH(J90,'[1]DATA ELV'!$B:$B,0))) -> 
B91: 27 | W91: =IFERROR(VLOOKUP(E91,'[1]DATA VALID'!$D$2:$E$25,2,0),"") -> 0 | X91: =IFERROR(VLOOKUP(I91,'[1]DATA VALID'!$D$2:$E$25,2,0),"") -> 0 | Y91: =IFERROR(VLOOKUP(M91,'[1]DATA VALID'!$D$2:$E$25,2,0),"") -> 0 | AA91: =IF(C91="","",INDEX('[1]DATA ELV'!$F:$F,MATCH(C91,'[1]DATA ELV'!$B:$B,0))) ->  | AB91: =IF(F91="","",INDEX('[1]DATA ELV'!$F:$F,MATCH(F91,'[1]DATA ELV'!$B:$B,0))) ->  | AC91: =IF(J91="","",INDEX('[1]DATA ELV'!$F:$F,MATCH(J91,'[1]DATA ELV'!$B:$B,0))) -> 
B92: 28 | W92: =IFERROR(VLOOKUP(E92,'[1]DATA VALID'!$D$2:$E$25,2,0),"") -> 0 | X92: =IFERROR(VLOOKUP(I92,'[1]DATA VALID'!$D$2:$E$25,2,0),"") -> 0 | Y92: =IFERROR(VLOOKUP(M92,'[1]DATA VALID'!$D$2:$E$25,2,0),"") -> 0 | AA92: =IF(C92="","",INDEX('[1]DATA ELV'!$F:$F,MATCH(C92,'[1]DATA ELV'!$B:$B,0))) ->  | AB92: =IF(F92="","",INDEX('[1]DATA ELV'!$F:$F,MATCH(F92,'[1]DATA ELV'!$B:$B,0))) ->  | AC92: =IF(J92="","",INDEX('[1]DATA ELV'!$F:$F,MATCH(J92,'[1]DATA ELV'!$B:$B,0))) -> 
B93: 29 | N93: ملاحظات مختلفة | W93: =IFERROR(VLOOKUP(E93,'[1]DATA VALID'!$D$2:$E$25,2,0),"") -> 0 | X93: =IFERROR(VLOOKUP(I93,'[1]DATA VALID'!$D$2:$E$25,2,0),"") -> 0 | Y93: =IFERROR(VLOOKUP(M93,'[1]DATA VALID'!$D$2:$E$25,2,0),"") -> 0 | AA93: =IF(C93="","",INDEX('[1]DATA ELV'!$F:$F,MATCH(C93,'[1]DATA ELV'!$B:$B,0))) ->  | AB93: =IF(F93="","",INDEX('[1]DATA ELV'!$F:$F,MATCH(F93,'[1]DATA ELV'!$B:$B,0))) ->  | AC93: =IF(J93="","",INDEX('[1]DATA ELV'!$F:$F,MATCH(J93,'[1]DATA ELV'!$B:$B,0))) -> 
B94: 30 | W94: =IFERROR(VLOOKUP(E94,'[1]DATA VALID'!$D$2:$E$25,2,0),"") -> 0 | X94: =IFERROR(VLOOKUP(I94,'[1]DATA VALID'!$D$2:$E$25,2,0),"") -> 0 | Y94: =IFERROR(VLOOKUP(M94,'[1]DATA VALID'!$D$2:$E$25,2,0),"") -> 0 | AA94: =IF(C94="","",INDEX('[1]DATA ELV'!$F:$F,MATCH(C94,'[1]DATA ELV'!$B:$B,0))) ->  | AB94: =IF(F94="","",INDEX('[1]DATA ELV'!$F:$F,MATCH(F94,'[1]DATA ELV'!$B:$B,0))) ->  | AC94: =IF(J94="","",INDEX('[1]DATA ELV'!$F:$F,MATCH(J94,'[1]DATA ELV'!$B:$B,0))) -> 
B95: 31 | W95: =IFERROR(VLOOKUP(E95,'[1]DATA VALID'!$D$2:$E$25,2,0),"") -> 0 | X95: =IFERROR(VLOOKUP(I95,'[1]DATA VALID'!$D$2:$E$25,2,0),"") -> 0 | Y95: =IFERROR(VLOOKUP(M95,'[1]DATA VALID'!$D$2:$E$25,2,0),"") -> 0 | AA95: =IF(C95="","",INDEX('[1]DATA ELV'!$F:$F,MATCH(C95,'[1]DATA ELV'!$B:$B,0))) ->  | AB95: =IF(F95="","",INDEX('[1]DATA ELV'!$F:$F,MATCH(F95,'[1]DATA ELV'!$B:$B,0))) ->  | AC95: =IF(J95="","",INDEX('[1]DATA ELV'!$F:$F,MATCH(J95,'[1]DATA ELV'!$B:$B,0))) -> 
B96: 32 | W96: =IFERROR(VLOOKUP(E96,'[1]DATA VALID'!$D$2:$E$25,2,0),"") -> 0 | X96: =IFERROR(VLOOKUP(I96,'[1]DATA VALID'!$D$2:$E$25,2,0),"") -> 0 | Y96: =IFERROR(VLOOKUP(M96,'[1]DATA VALID'!$D$2:$E$25,2,0),"") -> 0 | AA96: =IF(C96="","",INDEX('[1]DATA ELV'!$F:$F,MATCH(C96,'[1]DATA ELV'!$B:$B,0))) ->  | AB96: =IF(F96="","",INDEX('[1]DATA ELV'!$F:$F,MATCH(F96,'[1]DATA ELV'!$B:$B,0))) ->  | AC96: =IF(J96="","",INDEX('[1]DATA ELV'!$F:$F,MATCH(J96,'[1]DATA ELV'!$B:$B,0))) -> 
B97: 33 | W97: =IFERROR(VLOOKUP(E97,'[1]DATA VALID'!$D$2:$E$25,2,0),"") -> 0 | X97: =IFERROR(VLOOKUP(I97,'[1]DATA VALID'!$D$2:$E$25,2,0),"") -> 0 | Y97: =IFERROR(VLOOKUP(M97,'[1]DATA VALID'!$D$2:$E$25,2,0),"") -> 0 | AA97: =IF(C97="","",INDEX('[1]DATA ELV'!$F:$F,MATCH(C97,'[1]DATA ELV'!$B:$B,0))) ->  | AB97: =IF(F97="","",INDEX('[1]DATA ELV'!$F:$F,MATCH(F97,'[1]DATA ELV'!$B:$B,0))) ->  | AC97: =IF(J97="","",INDEX('[1]DATA ELV'!$F:$F,MATCH(J97,'[1]DATA ELV'!$B:$B,0))) -> 
B98: 34 | W98: =IFERROR(VLOOKUP(E98,'[1]DATA VALID'!$D$2:$E$25,2,0),"") -> 0 | X98: =IFERROR(VLOOKUP(I98,'[1]DATA VALID'!$D$2:$E$25,2,0),"") -> 0 | Y98: =IFERROR(VLOOKUP(M98,'[1]DATA VALID'!$D$2:$E$25,2,0),"") -> 0 | AA98: =IF(C98="","",INDEX('[1]DATA ELV'!$F:$F,MATCH(C98,'[1]DATA ELV'!$B:$B,0))) ->  | AB98: =IF(F98="","",INDEX('[1]DATA ELV'!$F:$F,MATCH(F98,'[1]DATA ELV'!$B:$B,0))) ->  | AC98: =IF(J98="","",INDEX('[1]DATA ELV'!$F:$F,MATCH(J98,'[1]DATA ELV'!$B:$B,0))) -> 
B99: مستشار التربية الناظر | W99: =IFERROR(VLOOKUP(E99,'[1]DATA VALID'!$D$2:$E$25,2,0),"") -> 0 | X99: =IFERROR(VLOOKUP(I99,'[1]DATA VALID'!$D$2:$E$25,2,0),"") -> 0 | Y99: =IFERROR(VLOOKUP(M99,'[1]DATA VALID'!$D$2:$E$25,2,0),"") -> 0 | AA99: =IF(C99="","",INDEX('[1]DATA ELV'!$F:$F,MATCH(C99,'[1]DATA ELV'!$B:$B,0))) ->  | AB99: =IF(F99="","",INDEX('[1]DATA ELV'!$F:$F,MATCH(F99,'[1]DATA ELV'!$B:$B,0))) ->  | AC99: =IF(J99="","",INDEX('[1]DATA ELV'!$F:$F,MATCH(J99,'[1]DATA ELV'!$B:$B,0))) -> 
W100: =IFERROR(VLOOKUP(E100,'[1]DATA VALID'!$D$2:$E$25,2,0),"") -> 0 | X100: =IFERROR(VLOOKUP(I100,'[1]DATA VALID'!$D$2:$E$25,2,0),"") -> 0 | Y100: =IFERROR(VLOOKUP(M100,'[1]DATA VALID'!$D$2:$E$25,2,0),"") -> 0 | AA100: =IF(C100="","",INDEX('[1]DATA ELV'!$F:$F,MATCH(C100,'[1]DATA ELV'!$B:$B,0))) ->  | AB100: =IF(F100="","",INDEX('[1]DATA ELV'!$F:$F,MATCH(F100,'[1]DATA ELV'!$B:$B,0))) ->  | AC100: =IF(J100="","",INDEX('[1]DATA ELV'!$F:$F,MATCH(J100,'[1]DATA ELV'!$B:$B,0))) -> 
W101: =IFERROR(VLOOKUP(E101,'[1]DATA VALID'!$D$2:$E$25,2,0),"") -> 0 | X101: =IFERROR(VLOOKUP(I101,'[1]DATA VALID'!$D$2:$E$25,2,0),"") -> 0 | Y101: =IFERROR(VLOOKUP(M101,'[1]DATA VALID'!$D$2:$E$25,2,0),"") -> 0 | AA101: =IF(C101="","",INDEX('[1]DATA ELV'!$F:$F,MATCH(C101,'[1]DATA ELV'!$B:$B,0))) ->  | AB101: =IF(F101="","",INDEX('[1]DATA ELV'!$F:$F,MATCH(F101,'[1]DATA ELV'!$B:$B,0))) ->  | AC101: =IF(J101="","",INDEX('[1]DATA ELV'!$F:$F,MATCH(J101,'[1]DATA ELV'!$B:$B,0))) -> 
W102: =IFERROR(VLOOKUP(E102,'[1]DATA VALID'!$D$2:$E$25,2,0),"") -> 0 | X102: =IFERROR(VLOOKUP(I102,'[1]DATA VALID'!$D$2:$E$25,2,0),"") -> 0 | Y102: =IFERROR(VLOOKUP(M102,'[1]DATA VALID'!$D$2:$E$25,2,0),"") -> 0 | AA102: =IF(C102="","",INDEX('[1]DATA ELV'!$F:$F,MATCH(C102,'[1]DATA ELV'!$B:$B,0))) ->  | AB102: =IF(F102="","",INDEX('[1]DATA ELV'!$F:$F,MATCH(F102,'[1]DATA ELV'!$B:$B,0))) ->  | AC102: =IF(J102="","",INDEX('[1]DATA ELV'!$F:$F,MATCH(J102,'[1]DATA ELV'!$B:$B,0))) -> 
G105: الأحد
B106: الرقم | C106: اسم و لقب الأستاذ | E106: التخصص | G106: ح1 | H106: ح2 | I106: ح3 | J106: ح4 | K106: ح5 | L106: ح6 | M106: ح7 | N106: ح8 | O106: ح9 | P106: ح10 | Q106: ح11
B107: 1 | C107: =[1]BASE!E5 -> ديب فاطمة | E107: =[1]BASE!F5 -> رياضيات | G107: 1ع1/1 | H107: 1ع1/1 | J107: 1ع2/1 | K107: 1ع2/1 | N107: 3أف1/1
B108: 2 | C108: =[1]BASE!E6 -> بوعريشة الهام | E108: =[1]BASE!F6 -> رياضيات | H108: 1ع1/3 | I108: 1ع1/3 | J108: 3ت ر | K108: 3ت ر
B109: 3 | C109: =[1]BASE!E7 -> مدوخ فاطمة الزهراء | E109: =[1]BASE!F7 -> رياضيات | G109: 1ع2/2 | H109: 1ع2/2 | J109: 1ع1/2 | K109: 1ع1/2
B110: 4 | C110: =[1]BASE!E8 -> بونخالة أسماء | E110: =[1]BASE!F8 -> رياضيات | G110: 3ع2/1 | H110: 3ع2/1 | K110: 2ع2/1 | L110: 2ع1/1 | M110: 2ع1/1 | N110: 2أف2
B111: 5 | C111: =[1]BASE!E9 -> مالو ياسمينة | E111: =[1]BASE!F9 -> رياضيات | L111: 1أ2/2 | M111: 2ع2/2 | N111: 2ع1/2
B112: 6 | C112: =[1]BASE!E10 -> قوراري أحمد | E112: =[1]BASE!F10 -> فيزياء | H112: 1ع1/4 | I112: 1ع2/4 | J112: 1ع2/4
B113: 7 | C113: =[1]BASE!E11 -> زيرار سميرة | E113: =[1]BASE!F11 -> فيزياء | G113: 1ع1/2 | H113: 1ع1/2 | I113: 3ع2/1 | J113: 3ع1/1 | K113: 3ع1/1 | M113: 1أ1/2 | N113: 1أ2/2
B114: 8 | C114: =[1]BASE!E12 -> عشماوي فؤاد | E114: =[1]BASE!F12 -> فيزياء
B115: 9 | C115: =[1]BASE!E13 -> ناضور محمد | E115: =[1]BASE!F13 -> فيزياء | G115: 1ع2/5 | H115: 1ع2/5 | I115: 3ع ت 2
B116: 10 | C116: =[1]BASE!E14 -> منصب 5 | E116: =[1]BASE!F14 -> فيزياء | G116: 2ت ر | H116: 2ت ر | I116: 1ع2/1 | J116: 1ع1/1 | K116: 1ع1/1
B117: 11 | C117: =[1]BASE!E15 -> درني اسماعيل | E117: =[1]BASE!F15 -> علوم ط | G117: 3ع1/1 | H117: 3ع1/1 | I117: 1ع1/2 | J117: 3ع2/1 | K117: 3ع2/1
B118: 12 | C118: =[1]BASE!E16 -> لعشب آمنة | E118: =[1]BASE!F16 -> علوم ط | I118: 1ع1/4 | J118: 1ع1/4 | K118: 1ع2/4 | M118: 1أ2/1
B119: 13 | C119: =[1]BASE!E17 -> براهمي عبد الباقي | E119: =[1]BASE!F17 -> علوم ط | J119: 1ع2/3 | K119: 1ع2/3 | L119: 2أف2 | M119: 2أف1/1 | N119: 2أف2/1
B120: 14 | C120: =[1]BASE!E18 -> هرواط سارة | E120: =[1]BASE!F18 -> علوم ط | G120: 3ع ت 2 | H120: 3ع ت 2 | J120: 1ع2/5 | K120: 1ع2/5
B121: 15 | C121: =[1]BASE!E19 -> حاسي بن عودة | E121: =[1]BASE!F19 -> ع,إسلامية | G121: 1ع2/4 | H121: 1ع1/5 | L121: 1أ1/1 | M121: 3أف2/1 | N121: 1أ2/1
B122: 16 | C122: =[1]BASE!E20 -> بوحاجب | E122: =[1]BASE!F20 -> ع,إسلامية | L122: 2ع2/2 | M122: 2ع1/2 | N122: 3لغات
B123: 17 | C123: =[1]BASE!E21 -> قادري | E123: =[1]BASE!F21 -> أدب عربي | L123: 2أف1/1 | M123: 2ت إ/1 | N123: 2ع2/2
B124: 18 | C124: =[1]BASE!E22 -> صبيان | E124: =[1]BASE!F22 -> أدب عربي | L124: 3لغات | M124: 3لغات | N124: 1أ1/2
B125: 19 | C125: =[1]BASE!E23 -> أوزين ليلى | E125: =[1]BASE!F23 -> أدب عربي | I125: 1ع1/5 | J125: 1ع2/2 | K125: 3ت إ/2
B126: 20 | C126: =[1]BASE!E24 -> معروف علي | E126: =[1]BASE!F24 -> أدب عربي | G126: 1ع1/3 | H126: 1ع2/3 | L126: 3أف2 | M126: 3أف2 | N126: 1أ1/1
B127: 21 | C127: =[1]BASE!E25 -> عيساوي آمنة | E127: =[1]BASE!F25 -> أدب عربي | L127: 3أف1/1 | M127: 3أف1/1 | N127: 3أف2/1
B128: 22 | C128: =[1]BASE!E26 -> شيخ ياسين | E128: =[1]BASE!F26 -> فلسفة
B129: 23 | C129: =[1]BASE!E27 -> بلحاج منير | E129: =[1]BASE!F27 -> فلسفة
B130: 24 | C130: =[1]BASE!E28 -> آجد سليمة | E130: =[1]BASE!F28 -> إجتماعيات
B131: 25 | C131: =[1]BASE!E29 -> قان محمد شهر الدين | E131: =[1]BASE!F29 -> إجتماعيات
B132: 26 | C132: =[1]BASE!E30 -> موس محمد | E132: =[1]BASE!F30 -> إجتماعيات
B133: 27 | C133: =[1]BASE!E31 -> بودربالة ع القادر | E133: =[1]BASE!F31 -> إجتماعيات
B134: 28 | C134: =[1]BASE!E32 -> عباد أسماء | E134: =[1]BASE!F32 -> لغة فرنسية | G134: 1ع2/1 | I134: 1ع2/3 | J134: 1ع1/3 | L134: 1أ1/2 | M134: 1أ2/2 | N134: 3أف2
B135: 29 | C135: =[1]BASE!E33 -> كوليلي وفاء | E135: =[1]BASE!F33 -> لغة فرنسية | G135: 3ت ر | I135: 2ت ر | L135: 3أف2/1 | M135: 2أف2 | N135: 2ع2/1
B136: 30 | C136: =[1]BASE!E34 -> رابحي ايمان | E136: =[1]BASE!F34 -> لغة فرنسية | G136: 1ع1/5 | H136: 1ع2/4 | I136: 1ع2/2 | J136: 3ع ت 2 | K136: 3ع ت 2
B137: 31 | C137: =[1]BASE!E35 -> بومانة هداية | E137: =[1]BASE!F35 -> لغة فرنسية | G137: 3ت إ/1 | I137: 3ت إ/2 | L137: 2لغات | M137: 2أف2/1 | N137: 2أف1/1
B138: 32 | C138: =[1]BASE!E36 -> معزوز مليكة | E138: =[1]BASE!F36 -> لغة إنجليزية | H138: 3ت إ/1 | I138: 3ع1/1 | J138: 3ت إ/2 | K138: 1ع1/4
B139: 33 | C139: =[1]BASE!E37 -> شنتوف سليمة | E139: =[1]BASE!F37 -> لغة إنجليزية | G139: 1ع2/3 | H139: 1ع2/1 | I139: 1ع1/1 | K139: 1ع1/3
B140: 34 | C140: =[1]BASE!E38 -> مزاري سهام | E140: =[1]BASE!F38 -> لغة إنجليزية | I140: 1ع2/5 | J140: 1ع1/5 | L140: 1أ2/1 | M140: 2لغات | N140: 2لغات
B141: 35 | C141: =[1]BASE!E39 -> العرباوي حياة | E141: =[1]BASE!F39 -> لغة إنجليزية | L141: 2ع1/2 | M141: 2ع2/1 | N141: 2ت إ/2
B142: 36 | C142: =[1]BASE!E40 -> سفاني حياة | E142: =[1]BASE!F40 -> إسبانية
B143: 37 | C143: =[1]BASE!E41 -> دلافي أحمد | E143: =[1]BASE!F41 -> تكنولوجيا | H143: 3ت ر | I143: 3ت ر | J143: 2ت ر | K143: 2ت ر
B144: 38 | C144: =[1]BASE!E42 -> جبور صافية | E144: =[1]BASE!F42 -> إقتصاد | G144: 3ت إ/2 | H144: 3ت إ/2 | I144: 3ت إ/1 | J144: 3ت إ/1 | L144: 2ت إ/2 | M144: 2ت إ/2 | N144: 2ت إ/1
B145: 39 | C145: =[1]BASE!E43 -> بوحميدي ايمان | E145: =[1]BASE!F43 -> إقتصاد
B146: 40 | C146: =[1]BASE!E44 -> عشي زهير | E146: =[1]BASE!F44 -> تكنولوجيا | H146: 3ت ر | I146: 3ت ر | J146: 2ت ر | K146: 2ت ر
B147: 41 | C147: =[1]BASE!E45 -> زار مصطفى | E147: =[1]BASE!F45 -> تكنولوجيا
B148: 42 | C148: =[1]BASE!E46 -> أبرور عبد المجيد | E148: =[1]BASE!F46 -> رياضة بدنية | I148: 3أف2/1 | J148: 3أف2/1 | M148: 1ع2/2 | N148: 1ع2/2
B149: 43 | C149: =[1]BASE!E47 -> لقبوري مصطفى | E149: =[1]BASE!F47 -> رياضة بدنية | I149: 2أف2/1 | J149: 2أف2/1
B150: 44 | C150: =[1]BASE!E48 -> تربش مصطفى | E150: =[1]BASE!F48 -> رياضة بدنية
B151: 45 | C151: =[1]BASE!E49 -> 0 | E151: =[1]BASE!F49 -> 0
B152: 46 | C152: =[1]BASE!E50 -> 0 | E152: =[1]BASE!F50 -> 0
B153: 47 | C153: =[1]BASE!E51 -> 0 | E153: =[1]BASE!F51 -> 0
B154: 48 | C154: =[1]BASE!E52 -> 0 | E154: =[1]BASE!F52 -> 0
B155: 49 | C155: =[1]BASE!E53 -> 0 | E155: =[1]BASE!F53 -> 0
B156: 50 | C156: =[1]BASE!E54 -> 0 | E156: =[1]BASE!F54 -> 0
B157: 51 | C157: =[1]BASE!E55 -> 0 | E157: =[1]BASE!F55 -> 0
B158: 52 | C158: =[1]BASE!E56 -> 0 | E158: =[1]BASE!F56 -> 0
B159: 53 | C159: =[1]BASE!E57 -> 0 | E159: =[1]BASE!F57 -> 0
B160: 54 | C160: =[1]BASE!E58 -> 0 | E160: =[1]BASE!F58 -> 0
B161: 55 | C161: =[1]BASE!E59 -> 0 | E161: =[1]BASE!F59 -> 0
B162: 56 | C162: =[1]BASE!E60 -> 0 | E162: =[1]BASE!F60 -> 0
B163: 57 | C163: =[1]BASE!E61 -> 0 | E163: =[1]BASE!F61 -> 0
B164: 58 | C164: =[1]BASE!E62 -> 0 | E164: =[1]BASE!F62 -> 0
B165: 59 | C165: =[1]BASE!E63 -> 0 | E165: =[1]BASE!F63 -> 0
B166: 60 | C166: =[1]BASE!E64 -> 0 | E166: =[1]BASE!F64 -> 0
B167: 61 | C167: =[1]BASE!E65 -> 0 | E167: =[1]BASE!F65 -> 0
B168: 62 | C168: =[1]BASE!E66 -> 0 | E168: =[1]BASE!F66 -> 0
B169: 63 | C169: =[1]BASE!E67 -> 0 | E169: =[1]BASE!F67 -> 0
B170: 64 | C170: =[1]BASE!E68 -> 0 | E170: =[1]BASE!F68 -> 0
B171: 65 | C171: =[1]BASE!E69 -> 0 | E171: =[1]BASE!F69 -> 0
B172: 66 | C172: =[1]BASE!E70 -> 0 | E172: =[1]BASE!F70 -> 0
B173: 67 | C173: =[1]BASE!E71 -> 0 | E173: =[1]BASE!F71 -> 0
B174: 68 | C174: =[1]BASE!E72 -> 0 | E174: =[1]BASE!F72 -> 0
B175: 69 | C175: =[1]BASE!E73 -> 0 | E175: =[1]BASE!F73 -> 0
B176: 70 | C176: =[1]BASE!E74 -> 0 | E176: =[1]BASE!F74 -> 0
B177: 71 | C177: =[1]BASE!E75 -> 0 | E177: =[1]BASE!F75 -> 0
B178: 72 | C178: =[1]BASE!E76 -> 0 | E178: =[1]BASE!F76 -> 0
B179: 73 | C179: =[1]BASE!E77 -> 0 | E179: =[1]BASE!F77 -> 0
B180: 74 | C180: =[1]BASE!E78 -> 0 | E180: =[1]BASE!F78 -> 0
B181: 75 | C181: =[1]BASE!E79 -> 0 | E181: =[1]BASE!F79 -> 0
B182: 76 | C182: =[1]BASE!E80 -> 0 | E182: =[1]BASE!F80 -> 0
B183: 77 | C183: =[1]BASE!E81 -> 0 | E183: =[1]BASE!F81 -> 0
B184: 78 | C184: =[1]BASE!E82 -> 0 | E184: =[1]BASE!F82 -> 0
B185: 79 | C185: =[1]BASE!E83 -> 0 | E185: =[1]BASE!F83 -> 0
B186: 80 | C186: =[1]BASE!E84 -> 0 | E186: =[1]BASE!F84 -> 0
B187: 81 | C187: =[1]BASE!E85 -> 0 | E187: =[1]BASE!G85 -> 0
B188: 82 | C188: =[1]BASE!E86 -> 0 | E188: =[1]BASE!G86 -> 0
B189: 83 | C189: =[1]BASE!E87 -> 0 | E189: =[1]BASE!G87 -> 0
B190: 84 | C190: =[1]BASE!E88 -> 0 | E190: =[1]BASE!G88 -> 0
B191: 85 | C191: =[1]BASE!E89 -> الحجم الساعي | E191: =[1]BASE!G89 -> 0 | G191: 73 | H191: 49 | I191: 50 | J191: 172 | K191: 33

Sheet ABS
I3: 2021-10-01 | O3: بداية العام الدراسي
F4: الجمعة | G4: 2021-10-02 | H4: 2021-07-02 | I4: 2021-07-03 | J4: 2021-07-04 | K4: 2021-07-05 | L4: 2021-07-06 | M4: 2021-07-07 | N4: 2021-07-08 | O4: 2021-07-09 | P4: 2021-07-10 | Q4: 2021-07-11 | R4: 2021-07-12 | S4: 2021-07-13 | T4: 2021-07-14 | U4: 2021-07-15 | V4: 2021-07-16 | W4: 2021-07-17 | X4: 2021-07-18 | Y4: 2021-07-19 | Z4: 2021-07-20 | AA4: 2021-07-21 | AB4: 2021-07-22 | AC4: 2021-07-23 | AD4: 2021-07-24 | AE4: 2021-07-25 | AF4: 2021-07-26 | AG4: 2021-07-27 | AH4: 2021-07-28 | AI4: 2021-07-29 | AJ4: 2021-07-30 | AK4: 2021-07-31 | AL4: 2021-08-01 | AM4: 2021-08-02 | AN4: 2021-08-03 | AO4: 2021-08-04 | AP4: 2021-08-05 | AQ4: 2021-08-06 | AR4: 2021-08-07 | AS4: 2021-08-08 | AT4: 2021-08-09 | AU4: 2021-08-10 | AV4: 2021-08-11 | AW4: 2021-08-12 | AX4: 2021-08-13 | AY4: 2021-08-14 | AZ4: 2021-08-15 | BA4: 2021-08-16 | BB4: 2021-08-17 | BC4: 2021-08-18 | BD4: 2021-08-19 | BE4: 2021-08-20 | BF4: 2021-08-21 | BG4: 2021-08-22 | BH4: 2021-08-23 | BI4: 2021-08-24 | BJ4: 2021-08-25 | BK4: 2021-08-26 | BL4: 2021-08-27 | BM4: 2021-08-28 | BN4: 2021-08-29 | BO4: 2021-08-30 | BP4: 2021-08-31 | BQ4: 2021-09-01 | BR4: 2021-09-02 | BS4: 2021-09-03 | BT4: 2021-09-04 | BU4: 2021-09-05 | BV4: 2021-09-06 | BW4: 2021-09-07 | BX4: 2021-09-08 | BY4: 2021-09-09 | BZ4: 2021-09-10 | CA4: 2021-09-11 | CB4: 2021-09-12 | CC4: 2021-09-13 | CD4: 2021-09-14 | CE4: 2021-09-15 | CF4: 2021-09-16 | CG4: 2021-09-17 | CH4: 2021-09-18 | CI4: 2021-09-19 | CJ4: 2021-09-20 | CK4: 2021-09-21 | CL4: 2021-09-22 | CM4: 2021-09-23 | CN4: 2021-09-24 | CO4: 2021-09-25 | CP4: 2021-09-26 | CQ4: 2021-09-27 | CR4: 2021-09-28 | CS4: 2021-09-29 | CT4: 2021-09-30 | CU4: 2021-10-01 | CV4: 2021-10-02 | CW4: 2021-10-03 | CX4: 2021-10-04 | CY4: 2021-10-05 | CZ4: 2021-10-06 | DA4: 2021-10-07 | DB4: 2021-10-08 | DC4: 2021-10-09 | DD4: 2021-10-10 | DE4: 2021-10-11 | DF4: 2021-10-12 | DG4: 2021-10-13 | DH4: 2021-10-14 | DI4: 2021-10-15 | DJ4: 2021-10-16 | DK4: 2021-10-17 | DL4: 2021-10-18 | DM4: 2021-10-19 | DN4: 2021-10-20 | DO4: 2021-10-21 | DP4: 2021-10-22 | DQ4: 2021-10-23 | DR4: 2021-10-24 | DS4: 2021-10-25 | DT4: 2021-10-26 | DU4: 2021-10-27 | DV4: 2021-10-28 | DW4: 2021-10-29 | DX4: 2021-10-30 | DY4: 2021-10-31 | DZ4: 2021-11-01 | EA4: 2021-11-02 | EB4: 2021-11-03 | EC4: 2021-11-04 | ED4: 2021-11-05 | EE4: 2021-11-06 | EF4: 2021-11-07 | EG4: 2021-11-08 | EH4: 2021-11-09 | EI4: 2021-11-10 | EJ4: 2021-11-11 | EK4: 2021-11-12 | EL4: 2021-11-13 | EM4: 2021-11-14 | EN4: 2021-11-15 | EO4: 2021-11-16 | EP4: 2021-11-17 | EQ4: 2021-11-18 | ER4: 2021-11-19 | ES4: 2021-11-20 | ET4: 2021-11-21 | EU4: 2021-11-22 | EV4: 2021-11-23 | EW4: 2021-11-24 | EX4: 2021-11-25 | EY4: 2021-11-26 | EZ4: 2021-11-27 | FA4: 2021-11-28 | FB4: 2021-11-29 | FC4: 2021-11-30 | FD4: 2021-12-01 | FE4: 2021-12-02 | FF4: 2021-12-03 | FG4: 2021-12-04 | FH4: 2021-12-05 | FI4: 2021-12-06 | FJ4: 2021-12-07 | FK4: 2021-12-08 | FL4: 2021-12-09 | FM4: 2021-12-10 | FN4: 2021-12-11 | FO4: 2021-12-12 | FP4: 2021-12-13 | FQ4: 2021-12-14 | FR4: 2021-12-15 | FS4: 2021-12-16 | FT4: 2021-12-17 | FU4: 2021-12-18 | FV4: 2021-12-19 | FW4: 2021-12-20 | FX4: 2021-12-21 | FY4: 2021-12-22 | FZ4: 2021-12-23 | GA4: 2021-12-24 | GB4: 2021-12-25 | GC4: 2021-12-26 | GD4: 2021-12-27 | GE4: 2021-12-28 | GF4: 2021-12-29 | GG4: 2021-12-30 | GH4: 2021-12-31 | GI4: 2022-01-01 | GJ4: 2022-01-02 | GK4: 2022-01-03 | GL4: 2022-01-04 | GM4: 2022-01-05 | GN4: 2022-01-06 | GO4: 2022-01-07 | GP4: 2022-01-08 | GQ4: 2022-01-09 | GR4: 2022-01-10 | GS4: 2022-01-11 | GT4: 2022-01-12 | GU4: 2022-01-13 | GV4: 2022-01-14 | GW4: 2022-01-15 | GX4: 2022-01-16 | GY4: 2022-01-17 | GZ4: 2022-01-18 | HA4: 2022-01-19 | HB4: 2022-01-20 | HC4: 2022-01-21 | HD4: 2022-01-22 | HE4: 2022-01-23 | HF4: 2022-01-24 | HG4: 2022-01-25 | HH4: 2022-01-26 | HI4: 2022-01-27 | HJ4: 2022-01-28 | HK4: 2022-01-29 | HL4: 2022-01-30 | HM4: 2022-01-31 | HN4: 2022-02-01 | HO4: 2022-02-02 | HP4: 2022-02-03 | HQ4: 2022-02-04 | HR4: 2022-02-05 | HS4: 2022-02-06 | HT4: 2022-02-07 | HU4: 2022-02-08 | HV4: 2022-02-09 | HW4: 2022-02-10 | HX4: 2022-02-11 | HY4: 2022-02-12 | HZ4: 2022-02-13 | IA4: 2022-02-14 | IB4: 2022-02-15 | IC4: 2022-02-16 | ID4: 2022-02-17 | IE4: 2022-02-18 | IF4: 2022-02-19 | IG4: 2022-02-20 | IH4: 2022-02-21 | II4: 2022-02-22 | IJ4: 2022-02-23 | IK4: 2022-02-24 | IL4: 2022-02-25 | IM4: 2022-02-26 | IN4: 2022-02-27 | IO4: 2022-02-28 | IP4: 2022-03-01 | IQ4: 2022-03-02 | IR4: 2022-03-03 | IS4: 2022-03-04 | IT4: 2022-03-05 | IU4: 2022-03-06 | IV4: 2022-03-07 | IW4: 2022-03-08 | IX4: 2022-03-09 | IY4: 2022-03-10 | IZ4: 2022-03-11 | JA4: 2022-03-12 | JB4: 2022-03-13 | JC4: 2022-03-14 | JD4: 2022-03-15 | JE4: 2022-03-16 | JF4: 2022-03-17 | JG4: 2022-03-18 | JH4: 2022-03-19 | JI4: 2022-03-20 | JJ4: 2022-03-21 | JK4: 2022-03-22 | JL4: 2022-03-23 | JM4: 2022-03-24 | JN4: 2022-03-25 | JO4: 2022-03-26 | JP4: 2022-03-27 | JQ4: 2022-03-28 | JR4: 2022-03-29
A5: الرقم | B5: اسم و لقـــــب التلميذ | C5: رقم التعريف المدرسي | D5: تاريخ الميلاد | E5: القسم | F5: =I3 -> 2021-10-01 | G5: =F5+1 -> 2021-10-02 | H5: =G5+1 -> 2021-10-03 | I5: =H5+1 -> 2021-10-04 | J5: 2021-10-05 | K5: 2021-10-06 | L5: 2021-10-07 | M5: 2021-10-08 | N5: 2021-10-09 | O5: 2021-10-10 | P5: 2021-10-11 | Q5: 2021-10-12 | R5: 2021-10-13 | S5: 2021-10-14 | T5: 2021-10-15 | U5: 2021-10-16 | V5: 2021-10-17 | W5: 2021-10-18 | X5: 2021-10-19 | Y5: 2021-10-20 | Z5: 2021-10-21 | AA5: 2021-10-22 | AB5: 2021-10-23 | AC5: 2021-10-24 | AD5: 2021-10-25 | AE5: 2021-10-26 | AF5: 2021-10-27 | AG5: 2021-10-28 | AH5: 2021-10-29 | AI5: 2021-10-30 | AJ5: 2021-10-31 | AK5: 2021-11-01 | AL5: 2021-11-02 | AM5: 2021-11-03 | AN5: 2021-11-04 | AO5: 2021-11-05 | AP5: 2021-11-06 | AQ5: 2021-11-07 | AR5: 2021-11-08 | AS5: 2021-11-09 | AT5: 2021-11-10 | AU5: 2021-11-11 | AV5: 2021-11-12 | AW5: 2021-11-13 | AX5: 2021-11-14 | AY5: 2021-11-15 | AZ5: 2021-11-16 | BA5: 2021-11-17 | BB5: 2021-11-18 | BC5: 2021-11-19 | BD5: 2021-11-20 | BE5: 2021-11-21 | BF5: 2021-11-22 | BG5: 2021-11-23 | BH5: 2021-11-24 | BI5: 2021-11-25 | BJ5: 2021-11-26 | BK5: 2021-11-27 | BL5: 2021-11-28 | BM5: 2021-11-29 | BN5: 2021-11-30 | BO5: 2021-12-01 | BP5: 2021-12-02 | BQ5: 2021-12-03 | BR5: 2021-12-04 | BS5: 2021-12-05 | BT5: 2021-12-06 | BU5: =BT5+1 -> 2021-12-07 | BV5: 2021-12-08 | BW5: 2021-12-09 | BX5: 2021-12-10 | BY5: 2021-12-11 | BZ5: 2021-12-12 | CA5: 2021-12-13 | CB5: 2021-12-14 | CC5: 2021-12-15 | CD5: 2021-12-16 | CE5: 2021-12-17 | CF5: 2021-12-18 | CG5: 2021-12-19 | CH5: 2021-12-20 | CI5: 2021-12-21 | CJ5: 2021-12-22 | CK5: 2021-12-23 | CL5: 2021-12-24 | CM5: 2021-12-25 | CN5: 2021-12-26 | CO5: 2021-12-27 | CP5: 2021-12-28 | CQ5: 2021-12-29 | CR5: 2021-12-30 | CS5: 2021-12-31 | CT5: 2022-01-01 | CU5: 2022-01-02 | CV5: 2022-01-03 | CW5: 2022-01-04 | CX5: 2022-01-05 | CY5: 2022-01-06 | CZ5: 2022-01-07 | DA5: 2022-01-08 | DB5: 2022-01-09 | DC5: 2022-01-10 | DD5: 2022-01-11 | DE5: 2022-01-12 | DF5: 2022-01-13 | DG5: 2022-01-14 | DH5: 2022-01-15 | DI5: 2022-01-16 | DJ5: 2022-01-17 | DK5: 2022-01-18 | DL5: 2022-01-19 | DM5: 2022-01-20 | DN5: 2022-01-21 | DO5: 2022-01-22 | DP5: 2022-01-23 | DQ5: 2022-01-24 | DR5: 2022-01-25 | DS5: 2022-01-26 | DT5: 2022-01-27 | DU5: 2022-01-28 | DV5: 2022-01-29 | DW5: 2022-01-30 | DX5: 2022-01-31 | DY5: 2022-02-01 | DZ5: 2022-02-02 | EA5: 2022-02-03 | EB5: 2022-02-04 | EC5: 2022-02-05 | ED5: 2022-02-06 | EE5: 2022-02-07 | EF5: 2022-02-08 | EG5: =EF5+1 -> 2022-02-09 | EH5: 2022-02-10 | EI5: 2022-02-11 | EJ5: 2022-02-12 | EK5: 2022-02-13 | EL5: 2022-02-14 | EM5: 2022-02-15 | EN5: 2022-02-16 | EO5: 2022-02-17 | EP5: 2022-02-18 | EQ5: 2022-02-19 | ER5: 2022-02-20 | ES5: 2022-02-21 | ET5: 2022-02-22 | EU5: 2022-02-23 | EV5: 2022-02-24 | EW5: 2022-02-25 | EX5: 2022-02-26 | EY5: 2022-02-27 | EZ5: 2022-02-28 | FA5: 2022-03-01 | FB5: 2022-03-02 | FC5: 2022-03-03 | FD5: 2022-03-04 | FE5: 2022-03-05 | FF5: 2022-03-06 | FG5: 2022-03-07 | FH5: 2022-03-08 | FI5: 2022-03-09 | FJ5: 2022-03-10 | FK5: 2022-03-11 | FL5: 2022-03-12 | FM5: 2022-03-13 | FN5: 2022-03-14 | FO5: 2022-03-15 | FP5: 2022-03-16 | FQ5: 2022-03-17 | FR5: 2022-03-18 | FS5: 2022-03-19 | FT5: 2022-03-20 | FU5: 2022-03-21 | FV5: 2022-03-22 | FW5: 2022-03-23 | FX5: 2022-03-24 | FY5: 2022-03-25 | FZ5: 2022-03-26 | GA5: 2022-03-27 | GB5: 2022-03-28 | GC5: 2022-03-29 | GD5: 2022-03-30 | GE5: 2022-03-31 | GF5: 2022-04-01 | GG5: 2022-04-02 | GH5: 2022-04-03 | GI5: 2022-04-04 | GJ5: 2022-04-05 | GK5: 2022-04-06 | GL5: 2022-04-07 | GM5: 2022-04-08 | GN5: 2022-04-09 | GO5: 2022-04-10 | GP5: 2022-04-11 | GQ5: 2022-04-12 | GR5: 2022-04-13 | GS5: =GR5+1 -> 2022-04-14 | GT5: 2022-04-15 | GU5: 2022-04-16 | GV5: 2022-04-17 | GW5: 2022-04-18 | GX5: 2022-04-19 | GY5: 2022-04-20 | GZ5: 2022-04-21 | HA5: 2022-04-22 | HB5: 2022-04-23 | HC5: 2022-04-24 | HD5: 2022-04-25 | HE5: 2022-04-26 | HF5: 2022-04-27 | HG5: 2022-04-28 | HH5: 2022-04-29 | HI5: 2022-04-30 | HJ5: 2022-05-01 | HK5: 2022-05-02 | HL5: 2022-05-03 | HM5: 2022-05-04 | HN5: 2022-05-05 | HO5: 2022-05-06 | HP5: 2022-05-07 | HQ5: 2022-05-08 | HR5: 2022-05-09 | HS5: 2022-05-10 | HT5: 2022-05-11 | HU5: 2022-05-12 | HV5: 2022-05-13 | HW5: 2022-05-14 | HX5: 2022-05-15 | HY5: 2022-05-16 | HZ5: 2022-05-17 | IA5: 2022-05-18 | IB5: 2022-05-19 | IC5: 2022-05-20 | ID5: 2022-05-21 | IE5: 2022-05-22 | IF5: 2022-05-23 | IG5: 2022-05-24 | IH5: 2022-05-25 | II5: 2022-05-26 | IJ5: 2022-05-27 | IK5: 2022-05-28 | IL5: 2022-05-29 | IM5: 2022-05-30 | IN5: 2022-05-31 | IO5: 2022-06-01 | IP5: 2022-06-02 | IQ5: 2022-06-03 | IR5: 2022-06-04 | IS5: 2022-06-05 | IT5: 2022-06-06 | IU5: 2022-06-07 | IV5: 2022-06-08 | IW5: 2022-06-09 | IX5: 2022-06-10 | IY5: 2022-06-11 | IZ5: 2022-06-12 | JA5: 2022-06-13 | JB5: 2022-06-14 | JC5: 2022-06-15 | JD5: 2022-06-16 | JE5: =JD5+1 -> 2022-06-17 | JF5: 2022-06-18 | JG5: 2022-06-19 | JH5: 2022-06-20 | JI5: 2022-06-21 | JJ5: 2022-06-22 | JK5: 2022-06-23 | JL5: 2022-06-24 | JM5: 2022-06-25 | JN5: 2022-06-26 | JO5: 2022-06-27 | JP5: 2022-06-28 | JQ5: 2022-06-29 | JR5: 2022-06-30
A6: 1 | B6: ='[1]DATA ELV'!B9 -> بوستين أسامة | C6: ='[1]DATA ELV'!C9 -> 1000513270043200 | D6: ='[1]DATA ELV'!G9 -> 2005-02-20 | E6: ='[1]DATA ELV'!J9 -> 3ت ر/هم | G6: 3 | FK6: 3
A7: 20 | B7: ='[1]DATA ELV'!B28 -> قنشي علاء الدين | C7: ='[1]DATA ELV'!C28 -> 0 | D7: ='[1]DATA ELV'!G28 -> 2002-12-25 | E7: ='[1]DATA ELV'!J28 -> 3ت ر/هك | G7: 0 | FK7: 0
A8: 21 | B8: ='[1]DATA ELV'!B29 -> الفضيل ريم | C8: ='[1]DATA ELV'!C29 -> 1100413270069100 | D8: ='[1]DATA ELV'!G29 -> 2004-03-23 | E8: ='[1]DATA ELV'!J29 -> 3ت إ01 | G8: 1 | FK8: 1
A9: 22 | B9: ='[1]DATA ELV'!B30 -> بن طيب ياسين | C9: ='[1]DATA ELV'!C30 -> 1000413270333600 | D9: ='[1]DATA ELV'!G30 -> 2004-12-04 | E9: ='[1]DATA ELV'!J30 -> 3ت إ01 | G9: 1 | FK9: 1
A10: 92 | B10: ='[1]DATA ELV'!B100 -> مهنان قصي | C10: ='[1]DATA ELV'!C100 -> 1000313270210200 | D10: ='[1]DATA ELV'!G100 -> 2003-09-09 | E10: ='[1]DATA ELV'!J100 -> 3ع ت01 | G10: 2 | FK10: 2
A11: 93 | B11: ='[1]DATA ELV'!B101 -> نواوي وائل | C11: ='[1]DATA ELV'!C101 -> 1000213270245200 | D11: ='[1]DATA ELV'!G101 -> 2002-11-01 | E11: ='[1]DATA ELV'!J101 -> 3ع ت01 | G11: 0 | FK11: 0
A12: 150 | B12: ='[1]DATA ELV'!B158 -> مبيتيل حواء | C12: ='[1]DATA ELV'!C158 -> 1100413270552600 | D12: ='[1]DATA ELV'!G158 -> 2004-08-14 | E12: ='[1]DATA ELV'!J158 -> 3أ ف01 | G12: 0 | FK12: 0
A13: 199 | B13: ='[1]DATA ELV'!B207 -> قطي أيوب | C13: ='[1]DATA ELV'!C207 -> 1000313270127100 | D13: ='[1]DATA ELV'!G207 -> 2003-11-15 | E13: ='[1]DATA ELV'!J207 -> 3لغات /إسبا | G13: 0 | FK13: 0
A14: 200 | B14: ='[1]DATA ELV'!B208 -> أمبارك ليلى | C14: ='[1]DATA ELV'!C208 -> 1100513270108400 | D14: ='[1]DATA ELV'!G208 -> 2005-05-10 | E14: ='[1]DATA ELV'!J208 -> 2ت ر/هم | G14: 0 | FK14: 0
A15: 428 | B15: ='[1]DATA ELV'!B436 -> موقاس إحسان | C15: ='[1]DATA ELV'!C436 -> 1100513270132200 | D15: ='[1]DATA ELV'!G436 -> 2005-05-31 | E15: ='[1]DATA ELV'!J436 -> 2لغات /إسبا | G15: 2 | FK15: 2
A16: 429 | B16: ='[1]DATA ELV'!B437 -> الفضيل دعاء | C16: ='[1]DATA ELV'!C437 -> 1100613270196100 | D16: ='[1]DATA ELV'!G437 -> 2006-07-15 | E16: ='[1]DATA ELV'!J437 -> ج م ع تك01 | G16: 1 | FK16: 1
A17: 430 | B17: ='[1]DATA ELV'!B438 -> الفضيل ياسر | C17: ='[1]DATA ELV'!C438 -> 1000613270355800 | D17: ='[1]DATA ELV'!G438 -> 2006-12-02 | E17: ='[1]DATA ELV'!J438 -> ج م ع تك01 | G17: 3 | FK17: 3
A18: 694 | B18: ='[1]DATA ELV'!B702 -> مفيتح كوثر | C18: ='[1]DATA ELV'!C702 -> 1100613270301500 | D18: ='[1]DATA ELV'!G702 -> 2006-10-13 | E18: ='[1]DATA ELV'!J702 -> ج م أ02 | G18: 8 | FK18: 8
A19: 695 | B19: ='[1]DATA ELV'!B703 -> موساوي عمارة | C19: ='[1]DATA ELV'!C703 -> 1100413270354800 | D19: ='[1]DATA ELV'!G703 -> 2004-12-28 | E19: ='[1]DATA ELV'!J703 -> ج م أ02 | G19: 0 | FK19: 0
